bitfinex/quotes_ETHUSD_20250908
["timestamp","ask_amount","ask_price","bid_price","bid_amount"]
[1757364569146,0.001,4288.3,4288.0,3.43138267]
[1757364569461,0.001,4288.3,4288.1,0.7905]
[1757364569988,0.001,4288.3,4288.2,0.7608]
[1757364572674,0.001,4288.3,4288.2,0.3088]
[1757364578385,0.001,4288.3,4288.2,0.7725]
[1757364578737,0.001,4288.3,4288.2,3.10448078]
[1757364578932,0.001,4288.3,4288.2,0.7725]
[1757364579439,0.001,4288.3,4288.2,0.3088]
[1757364580265,0.001,4288.3,4288.2,2.64078078]
[1757364580468,0.001,4288.3,4288.2,3.10448078]
[1757364580681,0.001,4288.3,4288.2,2.64078078]
[1757364582242,0.001,4288.3,4288.2,0.3088]
[1757364582692,0.001,4288.3,4288.2,2.64078078]
[1757364584100,0.001,4288.3,4288.2,2.75678078]
[1757364584444,0.001,4288.3,4288.2,0.116]
[1757364584763,0.001,4288.3,4288.2,4.0]
[1757364585092,0.7565,4288.3,4288.2,4.0]
[1757364585442,0.001,4288.3,4288.2,4.0]
[1757364585992,0.001,4288.3,4288.2,6.33198078]
[1757364587150,0.001,4288.3,4288.2,6.62078078]
[1757364587499,0.001,4288.3,4288.2,4.0]
[1757364587708,0.7565,4288.3,4288.2,4.0]
[1757364588589,0.7565,4288.3,4288.2,6.33198078]
[1757364588750,0.13162527,4288.3,4288.2,6.33198078]
[1757364588951,0.13162527,4288.3,4288.2,4.0]
[1757364589992,0.13162527,4288.3,4288.2,6.33198078]
[1757364593746,0.58822527,4288.3,4288.2,4.0]
[1757364594180,0.88712527,4288.3,4288.2,4.0]
[1757364594412,0.43052527,4288.3,4288.2,0.116]
[1757364594610,0.908,4288.2,4288.1,0.002]
[1757364594909,3.37060605,4288.2,4288.1,3.887]
[1757364595112,4.61120605,4288.2,4288.1,3.887]
[1757364595469,4.61120605,4288.2,4288.1,0.002]
[1757364595704,5.31794979,4288.2,4288.1,0.002]
[1757364596079,5.31827603,4288.2,4288.1,0.002]
[1757364596881,12.43627603,4288.2,4288.1,0.002]
[1757364599567,16.32127603,4288.2,4288.1,0.002]
[1757364599769,16.32120444,4288.2,4288.1,0.002]
[1757364602414,16.32116711,4288.2,4288.1,0.002]
[1757364602884,16.32016711,4288.2,4288.1,0.002]
[1757364603830,16.18932452,4288.2,4288.1,0.002]
[1757364605419,12.30532452,4288.2,4288.1,0.002]
[1757364605635,16.18832452,4288.2,4288.1,0.002]
[1757364606122,12.30532452,4288.2,4288.1,0.002]
[1757364606323,16.18832452,4288.2,4288.1,0.002]
[1757364607255,17.58832452,4288.2,4288.1,0.002]
[1757364607477,16.18832452,4288.2,4288.1,0.002]
[1757364609606,7.118,4288.2,4288.1,0.3039]
[1757364610093,0.001,4288.3,4288.1,0.7895]
[1757364610226,0.001,4288.3,4288.2,0.4856]
[1757364610618,0.001,4288.3,4288.2,0.7875]
[1757364611385,0.001,4288.3,4288.2,0.3019]
[1757364612667,0.001,4288.3,4288.2,0.7875]
[1757364612877,0.001,4288.3,4288.2,3.45798078]
[1757364613183,0.001,4288.3,4288.2,6.48130058]
[1757364613322,0.001,4288.3,4288.2,6.45798078]
[1757364613829,0.001,4288.3,4288.2,6.65798078]
[1757364617152,0.001,4288.3,4288.2,10.54398078]
[1757364618061,0.001,4288.3,4288.2,10.20548078]
[1757364618239,0.001,4288.3,4288.2,10.54398078]
[1757364619085,0.001,4288.3,4288.2,10.54298078]
[1757364619740,0.001,4288.3,4288.2,10.65898078]
[1757364624208,0.001,4288.3,4288.2,10.54298078]
[1757364624503,0.001,4288.3,4288.2,10.65898078]
[1757364625281,0.001,4288.3,4288.2,10.75224272]
[1757364628223,0.00100001,4288.8,4288.7,2.3317089]
[1757364628387,0.00100001,4288.8,4288.7,9.23802598]
[1757364628736,0.00100001,4288.8,4288.7,10.1182089]
[1757364628935,0.00100001,4288.8,4288.7,9.8326089]
[1757364629794,0.00100001,4288.8,4288.7,10.6567089]
[1757364634317,0.00100001,4288.8,4288.7,10.3182089]
[1757364635543,0.001,4289.4,4289.2,2.33143709]
[1757364635843,0.001,4289.6,4289.5,2.33127404]
[1757364636138,0.001,4289.6,4289.5,9.52098678]
[1757364636295,0.001,4289.6,4289.5,9.49767404]
[1757364636637,0.001,4289.6,4289.5,9.81339852]
[1757364637430,1.228,4289.6,4289.5,9.41327404]
[1757364639230,0.7536,4289.6,4289.5,9.41327404]
[1757364640796,0.001,4289.6,4289.5,9.69867404]
[1757364640996,0.001,4289.6,4289.5,10.19477404]
[1757364642748,0.001,4289.6,4289.5,9.69867404]
[1757364647806,0.001,4289.6,4289.5,9.41327404]
[1757364648449,0.001,4289.6,4289.5,9.69867404]
[1757364651756,0.001,4289.6,4289.5,9.79191207]
[1757364652247,0.001,4289.6,4289.5,6.21119347]
[1757364652416,0.001,4289.6,4289.5,9.78991207]
[1757364658009,0.001,4289.6,4289.5,9.50451207]
[1757364660777,0.3169,4289.6,4289.5,5.62451207]
[1757364660959,1.228,4289.6,4289.5,9.41127404]
[1757364670640,1.2494,4289.6,4289.5,9.41127404]
[1757364674222,0.001,4289.6,4289.5,9.81427404]
[1757364674422,0.001,4289.6,4289.5,10.30777404]
[1757364674935,0.001,4289.6,4289.5,10.64627404]
[1757364675227,0.001,4289.7,4289.6,5.33121969]
[1757364675580,0.001,4289.7,4289.6,5.61821969]
[1757364675781,1e-08,4289.8,4289.7,2.33116534]
[1757364676017,1e-08,4289.8,4289.7,9.92797699]
[1757364676171,0.001,4290.1,4290.0,2.33100233]
[1757364676382,0.001,4290.1,4290.0,9.23431235]
[1757364676585,0.001,4290.1,4290.0,9.61400233]
[1757364677129,0.001,4290.1,4290.0,9.81400233]
[1757364677304,0.001,4290.1,4290.0,9.52700233]
[1757364678207,0.4591,4290.1,4290.0,9.52700233]
[1757364679331,0.001,4290.1,4290.0,9.52700233]
[1757364681040,0.001,4290.1,4290.0,9.81400233]
[1757364681537,0.001,4290.1,4290.0,10.29280233]
[1757364683235,0.001,4290.1,4290.0,10.00580233]
[1757364684524,0.001,4290.5,4290.4,2.330785]
[1757364684841,0.4581,4291.2,4290.7,2.33062204]
[1757364684991,0.001,4291.4,4290.7,9.52092826]
[1757364685203,0.001,4291.4,4290.7,9.61362204]
[1757364685408,1e-08,4290.8,4290.7,9.81362204]
[1757364686222,1e-08,4290.8,4290.7,10.30712204]
[1757364686529,1e-08,4290.8,4290.7,9.90683226]
[1757364686741,1e-08,4290.8,4290.7,9.61983226]
[1757364687453,1e-08,4290.8,4290.7,9.90683226]
[1757364688261,1e-08,4290.8,4290.7,9.61983226]
[1757364688969,0.31590001,4290.8,4290.7,9.61883226]
[1757364689271,1.25180001,4290.8,4290.7,9.61883226]
[1757364689939,0.77400001,4290.8,4290.7,9.61883226]
[1757364690144,0.00100001,4290.8,4290.7,9.90583226]
[1757364693186,0.00100001,4290.8,4290.7,9.61883226]
[1757364693348,0.73820001,4290.8,4290.7,9.61883226]
[1757364693949,0.00100001,4290.8,4290.7,9.61883226]
[1757364695192,0.00100001,4290.8,4290.7,9.93203226]
[1757364695889,0.001,4291.3,4291.2,2.33035048]
[1757364696187,0.001,4291.4,4291.3,5.33029618]
[1757364696334,0.001,4291.4,4291.3,5.64349618]
[1757364696535,0.4327,4292.0,4291.3,0.3132]
[1757364696860,0.4327,4292.0,4291.6,2.44613328]
[1757364697069,0.4649,4292.1,4291.6,9.34843461]
[1757364697253,0.025,4292.8,4291.6,5.64613328]
[1757364697254,0.3055,4291.7,4291.6,5.64613328]
[1757364697593,1.2031,4291.7,4291.6,9.52513328]
[1757364697884,0.001,4291.7,4291.6,9.52513328]
[1757364698081,0.001,4291.7,4291.6,10.2240731]
[1757364699185,0.7382,4291.7,4291.6,10.2240731]
[1757364702097,0.001,4291.7,4291.6,10.5372731]
[1757364703796,0.001,4291.7,4291.6,10.2240731]
[1757364705610,0.3055,4291.7,4291.6,10.2240731]
[1757364706615,0.7382,4291.7,4291.6,10.2240731]
[1757364706986,1.2031,4291.7,4291.6,10.2240731]
[1757364707373,0.7382,4291.7,4291.6,10.2240731]
[1757364708499,1.2031,4291.7,4291.6,10.2240731]
[1757364709377,0.7382,4291.7,4291.6,10.2240731]
[1757364710458,0.4337,4291.7,4291.6,10.2240731]
[1757364710615,0.001,4291.7,4291.6,10.2240731]
[1757364710830,0.001,4291.7,4291.6,10.5372731]
[1757364712905,0.001,4291.7,4291.6,10.2240731]
[1757364713682,0.7382,4291.7,4291.6,10.2240731]
[1757364713880,1.2031,4291.7,4291.6,10.2240731]
[1757364714080,0.001,4291.7,4291.6,10.2240731]
[1757364715215,0.001,4291.7,4291.6,10.5372731]
[1757364715550,0.001,4291.7,4291.6,10.5362731]
[1757364715959,2.34889358,4293.9,4291.6,10.5362731]
[1757364715960,0.4649,4293.2,4292.7,2.32953618]
[1757364716087,0.4327,4293.5,4293.0,2.32937339]
[1757364716288,0.4327,4293.5,4293.4,5.32915637]
[1757364716618,1.2021,4293.5,4293.4,9.52515637]
[1757364717185,1.2021,4293.5,4293.4,10.22391061]
[1757364718106,1.2021,4293.5,4293.4,6.34391061]
[1757364718307,1.2021,4293.5,4293.4,10.22391061]
[1757364719419,0.025,4293.8,4293.7,2.32899364]
[1757364719591,0.025,4293.8,4293.7,10.99699364]
[1757364719797,0.3295,4293.8,4293.7,10.99699364]
[1757364720006,0.7622,4293.8,4293.7,11.19699364]
[1757364720342,1.2271,4293.8,4293.7,11.29014981]
[1757364720837,1.2271,4293.8,4293.7,11.28914981]
[1757364722219,1.2271,4293.8,4293.7,7.41014981]
[1757364722539,1.2271,4293.8,4293.7,11.29214981]
[1757364722734,1.2271,4293.8,4293.7,5.08115617]
[1757364722890,1.2271,4293.8,4293.7,8.96315617]
[1757364723096,0.4899,4293.8,4293.7,8.96315617]
[1757364723290,1.2542,4293.8,4293.7,11.29214981]
[1757364723984,1.2542,4293.8,4293.7,8.96315617]
[1757364724399,1.2542,4293.8,4293.7,8.76315617]
[1757364724625,1.2542,4293.8,4293.7,11.09214981]
[1757364726307,1.2542,4293.8,4293.7,8.76315617]
[1757364726508,1.2542,4293.8,4293.7,11.09214981]
[1757364729519,1.2542,4293.8,4293.7,11.20814981]
[1757364730028,1.2542,4293.8,4293.7,11.40814981]
[1757364733257,1.2542,4293.8,4293.7,9.07915617]
[1757364734916,1.2542,4293.8,4293.7,8.986]
[1757364735454,1.2542,4293.8,4293.7,11.31499364]
[1757364736710,0.7893,4293.8,4293.7,11.31499364]
[1757364737350,1.2798,4293.8,4293.7,11.31499364]
[1757364738267,0.7893,4293.8,4293.7,11.31499364]
[1757364738928,1.2798,4293.8,4293.7,8.986]
[1757364739337,1.2798,4293.8,4293.7,11.31499364]
[1757364739829,1.2798,4293.8,4293.7,8.981]
[1757364740446,1.2798,4293.8,4293.7,8.865]
[1757364740844,1.2798,4293.8,4293.7,8.665]
[1757364742158,1.2798,4293.8,4293.7,10.99399364]
[1757364742533,1.2808,4293.8,4293.7,10.99399364]
[1757364743818,1.2808,4293.8,4293.7,8.665]
[1757364745155,1.2808,4293.8,4293.7,10.99399364]
[1757364746928,1.2808,4293.8,4293.7,8.665]
[1757364749468,1.2808,4293.8,4293.7,10.99399364]
[1757364751678,1.2808,4293.8,4293.7,8.665]
[1757364752241,1.2808,4293.8,4293.7,10.99399364]
[1757364752441,1.2808,4293.8,4293.7,8.665]
[1757364753389,1.2808,4293.8,4293.7,5.665]
[1757364756189,0.7903,4293.8,4293.7,7.99399364]
[1757364756343,0.7903,4293.8,4293.7,5.665]
[1757364756798,0.026,4293.8,4293.7,11.29799364]
[1757364756945,0.026,4293.8,4293.7,12.38179958]
[1757364757358,0.026,4293.8,4293.7,12.58179958]
[1757364758177,0.026,4293.8,4293.7,12.30879364]
[1757364759789,0.026,4293.8,4293.7,12.40194525]
[1757364761703,0.026,4293.8,4293.7,11.49799364]
[1757364763310,0.3245,4293.8,4293.7,7.31699364]
[1757364763604,1.2278,4293.8,4293.7,11.19499364]
[1757364764011,0.3245,4293.8,4293.7,10.99499364]
[1757364765205,0.7641,4293.8,4293.7,10.99499364]
[1757364765908,1.2278,4293.8,4293.7,4.788]
[1757364766109,1.2278,4293.8,4293.7,8.665]
[1757364766313,1.2278,4293.8,4293.7,1.788]
[1757364766606,1.2278,4293.8,4293.7,5.665]
[1757364767030,1.2278,4293.8,4293.7,8.665]
[1757364774097,0.026,4293.8,4293.7,8.665]
[1757364774292,0.7641,4293.8,4293.7,8.665]
[1757364774544,1.2278,4293.8,4293.7,8.665]
[1757364779468,0.3245,4293.8,4293.7,8.665]
[1757364779762,0.7641,4293.8,4293.7,8.665]
[1757364780545,0.7641,4293.8,4293.7,10.99399364]
[1757364780546,0.4656,4293.8,4293.7,10.99399364]
[1757364781061,0.7641,4293.8,4293.7,8.665]
[1757364782967,0.7641,4293.8,4293.7,4.788]
[1757364783264,0.7641,4293.8,4293.7,8.665]
[1757364784071,0.026,4293.8,4293.7,10.99399364]
[1757364784227,0.7803,4293.8,4293.7,10.99399364]
[1757364784425,0.026,4293.8,4293.7,11.28439364]
[1757364785335,0.026,4293.8,4293.7,12.12189364]
[1757364785569,0.026,4293.8,4293.7,12.23789364]
[1757364786887,0.026,4293.8,4293.7,11.40039364]
[1757364787445,0.026,4293.8,4293.7,11.60039364]
[1757364789742,0.026,4293.8,4293.7,12.09939364]
[1757364790695,0.026,4293.8,4293.7,12.43789364]
[1757364791853,0.026,4293.8,4293.7,12.09939364]
[1757364792407,0.026,4293.8,4293.7,11.60039364]
[1757364798155,0.026,4293.8,4293.7,12.04929364]
[1757364798700,0.026,4293.8,4293.7,12.54829364]
[1757364800088,0.026,4293.8,4293.7,12.04929364]
[1757364800478,0.026,4293.8,4293.7,12.54829364]
[1757364800793,0.026,4293.8,4293.7,11.93329364]
[1757364806086,0.026,4293.8,4293.7,12.43229364]
[1757364806597,0.026,4293.8,4293.7,11.93329364]
[1757364810610,0.026,4293.8,4293.7,12.04929364]
[1757364810825,0.4739,4293.8,4293.7,11.75889364]
[1757364811231,0.3258,4293.8,4293.7,11.75889364]
[1757364811548,0.7773,4293.8,4293.7,11.75889364]
[1757364812044,0.026,4293.8,4293.7,11.75889364]
[1757364813840,0.4775,4293.8,4293.7,11.75889364]
[1757364815239,0.026,4293.8,4293.7,11.75889364]
[1757364816537,0.026,4293.8,4293.7,12.05809364]
[1757364817751,0.026,4293.8,4293.7,11.75889364]
[1757364818041,0.026,4293.8,4293.7,12.05809364]
[1757364819056,0.026,4293.8,4293.7,12.88009364]
[1757364819358,0.026,4293.8,4293.7,14.54900357]
[1757364819533,0.026,4293.8,4293.7,14.49800357]
[1757364819851,0.026,4293.8,4293.7,12.82909364]
[1757364820214,0.026,4293.8,4293.7,12.49059364]
[1757364820614,1e-08,4293.8,4293.7,12.49059364]
[1757364821242,1e-08,4293.8,4293.7,12.00709364]
[1757364821764,1e-08,4293.8,4293.7,12.49059364]
[1757364822263,1e-08,4293.8,4293.7,12.00709364]
[1757364824156,1e-08,4293.8,4293.7,11.70589364]
[1757364825464,1e-08,4293.8,4293.7,12.48859364]
[1757364825670,1e-08,4293.8,4293.7,12.76158483]
[1757364827233,1e-08,4293.8,4293.7,12.27808483]
[1757364829955,1e-08,4293.8,4293.7,12.00509364]
[1757364836284,1e-08,4293.8,4293.7,11.70589364]
[1757364840762,0.45150001,4293.8,4293.7,11.70589364]
[1757364841162,1e-08,4293.8,4293.7,11.70589364]
[1757364841679,1e-08,4293.8,4293.7,11.99939364]
[1757364841883,0.30220001,4293.8,4293.7,11.70589364]
[1757364842099,0.75170001,4293.8,4293.7,11.70589364]
[1757364842622,0.30220001,4293.8,4293.7,7.83089364]
[1757364842823,1.23270001,4293.8,4293.7,11.70489364]
[1757364843531,1.23270001,4293.8,4293.7,7.83089364]
[1757364843697,1.23270001,4293.8,4293.7,8.30599364]
[1757364843897,1.23270001,4293.8,4293.7,11.30599364]
[1757364844214,1e-08,4293.8,4293.7,11.59949364]
[1757364844425,0.02,4293.9,4293.8,5.3289394]
[1757364844789,0.02,4293.9,4293.8,5.6224394]
[1757364845050,0.02,4293.9,4293.8,5.8224394]
[1757364845386,1e-08,4293.9,4293.8,5.8224394]
[1757364846008,0.001,4294.3,4294.2,2.32872246]
[1757364846338,0.001,4294.3,4294.2,10.98851079]
[1757364846481,0.001,4294.3,4294.2,11.28201079]
[1757364846676,0.001,4294.3,4294.2,12.18055189]
[1757364846928,0.928,4295.9,4294.2,12.18055189]
[1757364846929,0.4495,4295.0,4294.7,2.32845134]
[1757364847102,0.4495,4295.0,4294.7,8.10545134]
[1757364847299,0.4745,4294.8,4294.7,8.10545134]
[1757364847685,0.4745,4294.8,4294.7,8.55495134]
[1757364849831,0.3272,4294.8,4294.7,8.55495134]
[1757364850015,0.3272,4294.8,4294.7,11.55495134]
[1757364850610,0.025,4294.8,4294.7,11.55495134]
[1757364850911,0.4745,4294.8,4294.7,11.55495134]
[1757364851111,0.025,4294.8,4294.7,11.55495134]
[1757364851449,0.4745,4294.8,4294.7,11.55495134]
[1757364851644,0.7767,4294.8,4294.7,11.55495134]
[1757364851942,0.4745,4294.8,4294.7,11.55495134]
[1757364852110,0.025,4294.8,4294.7,11.55495134]
[1757364852808,0.025,4294.8,4294.7,11.84845134]
[1757364853336,0.025,4294.8,4294.7,11.55495134]
[1757364855446,0.7767,4294.8,4294.7,11.55495134]
[1757364856591,1.2577,4294.8,4294.7,11.55495134]
[1757364857241,0.7767,4294.8,4294.7,11.55495134]
[1757364859746,0.4745,4294.8,4294.7,11.55495134]
[1757364859945,0.7767,4294.8,4294.7,11.55495134]
[1757364861038,0.025,4294.8,4294.7,11.55495134]
[1757364862147,0.026,4294.8,4294.7,11.84845134]
[1757364862509,0.026,4294.8,4294.7,11.55495134]
[1757364862849,0.4755,4294.8,4294.7,11.55495134]
[1757364863552,0.026,4294.8,4294.7,11.55495134]
[1757364863759,0.4755,4294.8,4294.7,11.55495134]
[1757364864046,0.026,4294.8,4294.7,11.55495134]
[1757364871375,0.469,4294.8,4294.7,11.55495134]
[1757364871593,1.2462,4294.8,4294.7,11.55495134]
[1757364871796,0.026,4294.8,4294.7,11.85645134]
[1757364872296,0.026,4294.8,4294.7,11.55495134]
[1757364872422,1.2462,4294.8,4294.7,11.55495134]
[1757364874362,1.2462,4294.8,4294.7,13.22433425]
[1757364875976,0.7587,4294.8,4294.7,13.22433425]
[1757364876340,0.7587,4294.8,4294.7,11.55495134]
[1757364878632,1.2462,4294.8,4294.7,11.55495134]
[1757364883502,0.5135,4294.8,4294.7,11.55495134]
[1757364883676,1.2462,4294.8,4294.7,11.55495134]
[1757364884366,0.7587,4294.8,4294.7,11.55495134]
[1757364884558,0.026,4294.8,4294.7,11.55495134]
[1757364885004,0.7587,4294.8,4294.7,11.55495134]
[1757364885606,0.469,4294.8,4294.7,11.55495134]
[1757364885778,0.026,4294.8,4294.7,11.55495134]
[1757364887318,0.026,4294.8,4294.7,11.85645134]
[1757364887914,0.026,4294.8,4294.7,7.98245134]
[1757364888209,0.026,4294.8,4294.7,11.85445134]
[1757364888375,0.026,4294.8,4294.7,7.98245134]
[1757364888581,0.026,4294.8,4294.7,11.85445134]
[1757364890206,0.026,4294.8,4294.7,11.55295134]
[1757364892526,0.026,4294.8,4294.7,11.85445134]
[1757364894927,0.026,4294.8,4294.7,12.05445134]
[1757364898133,0.443,4295.6,4294.8,5.32839713]
[1757364898300,1e-08,4294.9,4294.8,6.07678832]
[1757364898503,1e-08,4294.9,4294.8,6.37828832]
[1757364898717,1e-08,4294.9,4294.8,5.90288832]
[1757364899677,1e-08,4294.9,4294.8,5.60138832]
[1757364899811,1e-08,4294.9,4294.8,5.32839713]
[1757364900527,1.22020001,4294.9,4294.8,5.32839713]
[1757364900740,1.22020001,4294.9,4294.8,10.87122812]
[1757364902339,1.22020001,4294.9,4294.8,6.99922812]
[1757364902549,1.22020001,4294.9,4294.8,10.87122812]
[1757364904644,1.22020001,4294.9,4294.8,11.07122812]
[1757364904974,1.22020001,4294.9,4294.8,7.19922812]
[1757364905194,1.22020001,4294.9,4294.8,11.07122812]
[1757364906601,1.22020001,4294.9,4294.8,1.87083099]
[1757364906730,1.22020001,4294.9,4294.8,4.071]
[1757364907155,1.22020001,4294.9,4294.8,7.071]
[1757364907678,1.22020001,4294.9,4294.8,9.39939713]
[1757364913025,1.22020001,4294.9,4294.8,7.071]
[1757364913525,1.22020001,4294.9,4294.8,6.871]
[1757364916634,2.01220001,4294.9,4294.8,6.871]
[1757364916834,2.46017726,4294.9,4294.8,6.873]
[1757364917023,2.46117726,4294.9,4294.8,6.873]
[1757364917942,2.01320001,4294.9,4294.8,6.873]
[1757364918556,4.34154292,4294.9,4294.8,3.873]
[1757364918772,2.01320001,4294.9,4294.8,3.873]
[1757364933826,4.34154292,4294.9,4294.8,3.873]
[1757364933993,5.02245858,4294.9,4294.8,3.873]
[1757364934620,5.13845858,4294.9,4294.8,3.873]
[1757364934931,2.81011567,4294.9,4294.8,3.873]
[1757364935226,2.83346121,4294.9,4294.8,3.873]
[1757364935394,5.16180412,4294.9,4294.8,0.002]
[1757364935595,5.13845858,4294.9,4294.8,0.002]
[1757364939538,5.08845858,4294.9,4294.8,0.002]
[1757364940139,2.76011567,4294.9,4294.8,0.002]
[1757364940334,2.78346121,4294.9,4294.8,0.002]
[1757364941084,5.11180412,4294.9,4294.8,0.002]
[1757364941383,5.08845858,4294.9,4294.8,0.002]
[1757364944141,2.76011567,4294.9,4294.8,0.002]
[1757364944342,2.78346121,4294.9,4294.8,0.002]
[1757364944542,5.11180412,4294.9,4294.8,0.002]
[1757364944743,2.76011567,4294.9,4294.8,0.002]
[1757364944973,2.78346121,4294.9,4294.8,0.002]
[1757364945543,4.31980412,4294.9,4294.8,0.002]
[1757364946393,2.73346121,4294.9,4294.8,0.002]
[1757364948395,5.06180412,4294.9,4294.8,0.002]
[1757364948691,5.03845858,4294.9,4294.8,0.002]
[1757364949294,4.24645858,4294.9,4294.8,0.002]
[1757364949497,5.06180412,4294.9,4294.8,0.002]
[1757364949644,4.98845858,4294.9,4294.8,0.002]
[1757364950744,2.21711567,4294.9,4294.8,0.002]
[1757364950995,2.70636121,4294.9,4294.8,0.002]
[1757364952293,9.82436121,4294.9,4294.8,0.002]
[1757364952464,9.80101567,4294.9,4294.8,0.002]
[1757364952979,9.33511567,4294.9,4294.8,0.002]
[1757364953145,9.80101567,4294.9,4294.8,0.002]
[1757364958500,12.12935858,4294.9,4294.8,0.002]
[1757364959397,9.80101567,4294.9,4294.8,0.002]
[1757364962734,12.12935858,4294.9,4294.8,0.002]
[1757364963536,9.80101567,4294.9,4294.8,0.002]
[1757364964116,12.12935858,4294.9,4294.8,0.002]
[1757364965251,23.58637035,4294.9,4294.8,0.002]
[1757364965606,15.99935858,4294.9,4294.8,0.002]
[1757364968039,12.12935858,4294.9,4294.8,0.002]
[1757364968240,15.99935858,4294.9,4294.8,0.002]
[1757364990531,14.90525857,4294.9,4294.8,0.002]
[1757364990736,18.19385857,4294.9,4294.8,0.002]
[1757364991028,19.49777089,4294.9,4294.8,0.002]
[1757364991934,19.51547089,4294.9,4294.8,0.002]
[1757364996437,18.29127089,4294.9,4294.8,0.002]
[1757364997768,17.78925857,4294.9,4294.8,0.002]
[1757364998321,18.29142633,4294.9,4294.8,0.002]
[1757365000951,14.42242633,4294.9,4294.8,0.002]
[1757365001167,18.29142633,4294.9,4294.8,0.002]
[1757365002458,14.78925857,4294.9,4294.8,0.2882]
[1757365003438,10.92025857,4294.9,4294.8,0.2882]
[1757365003646,14.78925857,4294.9,4294.8,0.2882]
[1757365005259,14.78925857,4294.9,4294.8,0.002]
[1757365007178,10.92025857,4294.9,4294.8,0.002]
[1757365007494,14.10834291,4294.9,4294.8,0.2882]
[1757365008286,10.23934291,4294.9,4294.8,0.2882]
[1757365008552,14.10834291,4294.9,4294.8,0.2882]
[1757365010147,14.10834291,4294.9,4294.8,0.002]
[1757365010347,15.82188919,4294.9,4294.8,0.002]
[1757365012200,14.10834291,4294.9,4294.8,0.2882]
[1757365014626,10.23934291,4294.9,4294.8,0.2882]
[1757365014798,14.10734291,4294.9,4294.8,0.2882]
[1757365018451,14.10734291,4294.9,4294.8,0.002]
[1757365021150,7.911,4294.9,4294.8,0.2882]
[1757365021332,7.911,4294.9,4294.8,1.2074]
[1757365021534,10.23934291,4294.9,4294.8,0.2882]
[1757365028967,10.23934291,4294.9,4294.8,0.002]
[1757365035614,11.01344291,4294.9,4294.8,0.002]
[1757365036525,10.55314291,4294.9,4294.8,0.002]
[1757365036921,10.23934291,4294.9,4294.8,0.002]
[1757365040211,11.01344291,4294.9,4294.8,0.002]
[1757365040457,11.48014291,4294.9,4294.8,0.002]
[1757365040662,13.31755846,4294.9,4294.8,0.002]
[1757365042421,11.48014291,4294.9,4294.8,0.002]
[1757365043674,11.01344291,4294.9,4294.8,0.002]
[1757365047871,10.23934291,4294.9,4294.8,0.002]
[1757365048820,10.23934291,4294.9,4294.8,0.3014]
[1757365050584,7.119,4294.9,4294.8,0.7618]
[1757365050760,7.119,4294.9,4294.8,1.2206]
[1757365051074,7.911,4294.9,4294.8,1.2206]
[1757365051240,7.911,4294.9,4294.8,3.54899713]
[1757365054648,7.911,4294.9,4294.8,1.2206]
[1757365054894,7.911,4294.9,4294.8,0.7618]
[1757365055084,7.911,4294.9,4294.8,0.3014]
[1757365057124,7.911,4294.9,4294.8,2.62979713]
[1757365058602,7.119,4294.9,4294.8,0.2914]
[1757365058807,7.119,4294.9,4294.8,1.1766]
[1757365059001,7.119,4294.9,4294.8,3.50499713]
[1757365059236,0.001,4294.9,4294.8,6.7282811]
[1757365059502,0.001,4294.9,4294.8,7.08959588]
[1757365059852,0.001,4294.9,4294.8,6.82099713]
[1757365065309,0.001,4295.3,4295.2,2.32818029]
[1757365065654,0.001,4295.3,4295.2,9.21546209]
[1757365065951,0.001,4295.3,4295.2,10.36678029]
[1757365066252,0.001,4295.3,4295.2,10.45989981]
[1757365072542,0.001,4295.3,4295.2,9.57469981]
[1757365072926,0.001,4295.3,4295.2,9.28529981]
[1757365073538,0.3154,4295.3,4295.2,9.28529981]
[1757365073840,1.2107,4295.3,4295.2,9.28529981]
[1757365074585,0.001,4295.3,4295.2,9.28529981]
[1757365075377,0.001,4295.3,4295.2,9.40129981]
[1757365075562,0.001,4295.3,4295.2,9.69069981]
[1757365076631,0.001,4295.3,4295.2,9.40129981]
[1757365076911,0.7596,4295.3,4295.2,9.40129981]
[1757365077469,0.001,4295.3,4295.2,9.40129981]
[1757365080462,0.3154,4295.3,4295.2,9.40129981]
[1757365080664,0.001,4295.3,4295.2,9.40129981]
[1757365087206,0.001,4295.3,4295.2,9.70359981]
[1757365088946,0.001,4295.4,4295.3,5.32812609]
[1757365089130,0.001,4295.4,4295.3,6.28492609]
[1757365089461,0.001,4295.4,4295.3,8.25805708]
[1757365093765,0.001,4295.4,4295.3,8.52665583]
[1757365095413,0.001,4295.4,4295.3,8.05965583]
[1757365095619,0.001,4295.4,4295.3,7.56985583]
[1757365096340,0.001,4295.4,4295.3,7.30125708]
[1757365096540,0.001,4295.4,4295.3,5.63042609]
[1757365099027,0.001,4295.4,4295.3,5.74642609]
[1757365099995,0.001,4295.4,4295.3,11.32942609]
[1757365100870,0.001,4295.4,4295.3,11.02712609]
[1757365101071,0.7764,4295.4,4295.3,11.02712609]
[1757365101277,1.2344,4295.4,4295.3,11.02712609]
[1757365101460,0.7595,4295.4,4295.3,11.02712609]
[1757365101661,0.001,4295.4,4295.3,11.02712609]
[1757365102984,0.001,4295.4,4295.3,14.88912609]
[1757365102985,1.2344,4295.4,4295.3,14.88912609]
[1757365104613,1.2344,4295.4,4295.3,16.67512609]
[1757365107064,1.2344,4295.4,4295.3,16.67712609]
[1757365109525,1.2344,4295.4,4295.3,16.87712609]
[1757365110719,0.001,4295.4,4295.3,16.87712609]
[1757365112302,0.001,4295.4,4295.3,17.19032609]
[1757365112706,0.001,4295.4,4295.3,16.87712609]
[1757365113831,0.7462,4295.4,4295.3,16.87712609]
[1757365116332,1.2026,4295.4,4295.3,16.87712609]